bitfinex/quotes_ETHUSD_20241122
["timestamp","ask_amount","ask_price","bid_price","bid_amount"]
[1732267830345,1.5405,3351.3,3350.7,1.0252892]
[1732267830581,0.02982916,3351.2,3350.8,0.2969]
[1732267830875,0.02982916,3351.2,3350.7,1.0252892]
[1732267830876,1.5405,3351.0,3350.7,0.7283892]
[1732267831081,1.5405,3350.8,3350.7,0.7283892]
[1732267831434,7.0667886,3350.8,3350.7,0.4317892]
[1732267831637,1.4348,3350.7,3349.7,0.25]
[1732267831943,1.5698,3350.5,3349.7,0.25]
[1732267832171,1.5698,3350.3,3349.7,0.25]
[1732267832380,0.75299094,3350.4,3349.0,0.00422593]
[1732267832381,1.5698,3350.1,3349.0,0.00422593]
[1732267832540,7.83597954,3350.0,3349.0,0.00422593]
[1732267832737,5.6319886,3349.9,3349.0,0.00422593]
[1732267833235,1.4855,3349.7,3349.0,0.00422593]
[1732267833436,1.51532916,3349.7,3349.0,0.00422593]
[1732267833642,0.71473178,3349.6,3349.0,0.00422593]
[1732267833842,0.02982916,3349.5,3349.0,0.00422593]
[1732267834632,0.02982916,3349.5,3349.1,0.2969]
[1732267834872,1.51532916,3349.7,3349.0,3.00422593]
[1732267835068,1.4992,3350.1,3349.6,3.0]
[1732267835279,1.4992,3350.1,3349.6,3.2969]
[1732267835475,5.6319886,3350.4,3349.6,3.2969]
[1732267835647,0.02982916,3350.3,3349.6,3.2969]
[1732267835848,1.5394,3350.5,3349.6,0.62659]
[1732267836050,5.6319886,3351.6,3349.8,1.4842]
[1732267836051,1.5394,3351.4,3349.8,1.4842]
[1732267836277,5.66181776,3351.3,3349.9,0.2969]
[1732267836477,0.72012178,3351.2,3350.1,0.2969]
[1732267836680,5.66181776,3351.3,3350.1,0.2969]
[1732267836681,5.6319886,3351.3,3350.1,0.32674583]
[1732267836984,1.5394,3351.4,3351.2,3.0]
[1732267837144,1.5394,3351.4,3350.3,0.32674069]
[1732267837488,1.5394,3351.4,3351.2,3.0]
[1732267837636,1.5394,3351.4,3350.5,0.2969]
[1732267837836,1.5394,3351.4,3351.2,3.0]
[1732267838259,1.5394,3351.4,3350.9,3.0]
[1732267838460,1.5256,3351.2,3349.3,1.4503]
[1732267838643,5.6319886,3351.1,3349.3,2.19494599]
[1732267838841,5.7845486,3351.1,3349.4,0.22247894]
[1732267839252,5.7845486,3351.1,3349.4,0.25233019]
[1732267839474,5.7845486,3351.1,3349.5,0.2969]
[1732267839782,5.7845486,3351.1,3349.7,0.2969]
[1732267841765,1.4859,3350.9,3349.2,0.2969]
[1732267842081,1.4859,3350.7,3349.2,0.2969]
[1732267842265,1.4859,3350.7,3349.3,1.8586]
[1732267842467,5.6319886,3350.6,3349.3,1.8586]
[1732267842684,5.6319886,3350.6,3349.5,0.2969]
[1732267843543,1.4859,3350.5,3349.5,0.2969]
[1732267843746,5.6319886,3350.4,3349.0,0.33097961]
[1732267843945,5.6319886,3350.4,3349.2,0.2969]
[1732267844246,1.4678,3350.3,3349.2,0.2969]
[1732267844764,1.4678,3350.1,3349.2,0.2969]
[1732267845083,1.4678,3350.1,3349.0,0.00422593]
[1732267845261,5.6319886,3350.2,3349.0,0.00422593]
[1732267845262,1.5607,3349.9,3349.0,0.00422593]
[1732267846383,0.52447886,3350.0,3349.0,0.00422593]
[1732267848876,5.6319886,3349.9,3349.0,0.00422593]
[1732267849083,4.5226451,3349.7,3349.0,0.00422593]
[1732267849253,5.6319886,3349.6,3349.0,0.00422593]
[1732267849457,1.5186,3349.4,3349.0,0.00422593]
[1732267850693,5.6319886,3349.3,3349.0,0.00422593]
[1732267850890,5.6319886,3349.2,3348.0,0.2969]
[1732267851064,1.5481,3348.7,3347.4,1.97345523]
[1732267851265,1.5481,3348.5,3347.4,1.97345523]
[1732267851482,1.5853,3348.3,3347.4,1.97345523]
[1732267851805,1.5853,3348.1,3347.4,1.97345523]
[1732267852257,1.5853,3347.9,3347.4,1.97345523]
[1732267853468,7.2172886,3347.9,3347.4,1.97345523]
[1732267853782,1.5853,3348.2,3347.5,0.2969]
[1732267853970,1.5853,3348.2,3347.5,0.53896444]
[1732267854359,1.5853,3348.2,3347.5,0.2969]
[1732267854901,1.5853,3348.2,3347.7,0.2969]
[1732267854902,1.2884,3348.2,3347.7,0.2969]
[1732267855194,3.42412106,3348.8,3347.9,0.2969]
[1732267855399,3.42412106,3348.7,3348.0,0.2969]
[1732267855890,3.42412106,3348.6,3348.0,0.2969]
[1732267856098,3.42412106,3349.3,3348.0,0.2969]
[1732267856258,3.42412106,3349.2,3348.0,0.2969]
[1732267856459,3.42412106,3349.2,3347.9,0.2969]
[1732267856663,3.42412106,3349.3,3347.9,0.45003]
[1732267856892,3.42412106,3349.8,3349.0,0.2969]
[1732267857092,3.42412106,3349.7,3349.0,0.2969]
[1732267857761,1.4554,3349.6,3349.1,0.2969]
[1732267858995,1.4554,3349.6,3349.2,0.2969]
[1732267859158,0.48795211,3349.5,3349.2,0.2969]
[1732267859961,0.48795211,3349.5,3348.3,0.2969]
[1732267860194,1.4554,3349.6,3348.3,0.2969]
[1732267860195,3.42412106,3349.4,3348.3,0.2969]
[1732267860773,1.5979,3349.8,3348.5,0.2969]
[1732267861071,1.5979,3349.8,3348.7,0.2969]
[1732267861399,1.598,3350.8,3349.7,0.2969]
[1732267861602,3.42412106,3350.7,3349.7,0.2969]
[1732267861823,3.42412106,3350.6,3349.7,0.2969]
[1732267862007,0.50221211,3350.5,3349.7,0.2969]
[1732267862192,1.598,3350.8,3349.7,0.2969]
[1732267862393,1.598,3350.8,3349.9,0.2969]
[1732267863383,1.598,3350.8,3350.0,0.2969]
[1732267864438,1.5786,3351.3,3349.7,0.2969]
[1732267864592,5.00272106,3351.3,3350.0,0.2969]
[1732267864786,5.00272106,3351.3,3349.9,1.6035]
[1732267866524,5.00272106,3351.3,3348.4,2.47387609]
[1732267866525,0.55,3351.1,3349.4,1.5213]
[1732267866726,1.5382,3350.8,3349.4,1.5213]
[1732267867105,3.42412106,3350.7,3349.4,1.5213]
[1732267867300,0.49623211,3350.6,3349.5,0.15213]
[1732267867485,0.49623211,3350.6,3349.4,1.5213]
[1732267867681,4.96232106,3350.8,3349.4,1.5213]
[1732267868597,4.96232106,3350.8,3348.7,0.01]
[1732267868598,3.42412106,3350.8,3348.8,0.02985148]
[1732267868787,1.4665,3350.6,3348.8,0.52631266]
[1732267868982,1.4665,3350.6,3348.6,1.50755627]
[1732267869301,3.42412106,3350.5,3348.6,1.4777]
[1732267869502,1.4886,3350.3,3348.6,1.4777]
[1732267869950,0.55,3350.0,3348.1,1.5189]
[1732267870236,0.55,3350.0,3348.0,0.74586193]
[1732267870237,0.55,3349.4,3347.4,1.97345523]
[1732267870396,0.55,3348.9,3347.4,1.97345523]
[1732267870598,1.4748,3348.7,3347.4,1.97345523]
[1732267870790,3.42412106,3348.6,3347.4,1.97345523]
[1732267871528,1.4748,3348.7,3347.4,1.97345523]
[1732267871529,1.5763,3348.4,3347.4,1.67685523]
[1732267871735,3.7647332,3348.5,3347.4,1.67685523]
[1732267871736,1.5915,3348.0,3347.4,1.67685523]
[1732267872030,3.42412106,3347.9,3347.4,1.67685523]
[1732267872924,1.5915,3348.0,3347.4,1.67685523]
[1732267876435,3.42412106,3348.1,3347.4,1.67685523]
[1732267877200,1.4687,3348.8,3347.4,2.31008967]
[1732267877401,3.42412106,3348.7,3347.4,2.31008967]
[1732267877637,3.42412106,3348.7,3347.6,1.5052]
[1732267877821,3.42412106,3349.1,3347.7,0.32676701]
[1732267878021,3.42412106,3349.1,3347.7,4.00829598]
[1732267878227,4.89282106,3349.2,3347.7,4.00829598]
[1732267878429,4.89282106,3349.2,3347.8,0.5513496]
[1732267878628,4.89282106,3349.2,3347.6,1.5052]
[1732267878830,4.89282106,3349.2,3347.7,0.02986699]
[1732267879139,4.89282106,3349.2,3347.6,1.83196696]
[1732267879314,4.89282106,3349.2,3347.6,1.8021]
[1732267879638,3.42412106,3349.1,3347.7,0.65088209]
[1732267879837,3.42412106,3349.1,3347.6,1.5052]
[1732267880367,0.55,3349.0,3347.6,1.5052]
[1732267880637,3.42412106,3349.1,3347.6,1.5052]
[1732267883744,3.42412106,3349.1,3347.8,1.5854]
[1732267883939,3.42412106,3349.1,3347.9,0.30906]
[1732267884617,3.42412106,3349.1,3347.8,1.5854]
[1732267884820,1.55,3349.0,3347.5,0.2969]
[1732267885141,4.5226451,3349.5,3347.5,0.2969]
[1732267885142,0.55,3348.7,3347.5,0.2969]
[1732267885346,2.1,3348.5,3347.5,0.2969]
[1732267886715,1.55,3348.5,3347.5,0.2969]
[1732267886907,0.55,3348.4,3347.5,0.2969]
[1732267887103,0.55241211,3348.3,3347.5,0.2969]
[1732267887939,2.1258,3348.2,3347.5,0.2969]
[1732267888683,3.42412106,3348.1,3347.5,0.2969]
[1732267888881,3.42412106,3348.0,3347.5,0.2969]
[1732267889088,0.55499211,3347.9,3347.5,0.2969]
[1732267889394,1.5142,3347.7,3347.5,0.2969]
[1732267890400,3.42412106,3347.6,3347.5,0.2969]
[1732267890562,3.42412106,3347.6,3347.4,0.81923773]
[1732267890563,2.1,3347.5,3347.4,0.81923773]
[1732267890766,2.1,3347.5,3347.4,0.0281945]
[1732267890767,2.59383211,3347.5,3347.4,0.0281945]
[1732267891493,0.55,3347.1,3345.5,0.2969]
[1732267891648,0.55,3346.9,3345.5,0.2969]
[1732267892304,1.5763,3346.9,3345.5,0.2969]
[1732267892462,4.47416317,3346.8,3345.5,0.2969]
[1732267892783,3.97412106,3346.8,3345.5,0.2969]
[1732267892990,3.42412106,3346.8,3345.5,0.2969]
[1732267893192,0.3469538,3348.0,3345.2,3.0]
[1732267893193,1.5843,3347.3,3345.7,0.2969]
[1732267893369,1.5843,3347.3,3345.7,1.9137]
[1732267893768,3.42412106,3347.2,3345.7,1.9137]
[1732267894164,3.42412106,3347.2,3345.9,0.2969]
[1732267894367,3.42412106,3347.2,3346.7,0.2969]
[1732267894602,3.42412106,3347.6,3346.7,0.2969]
[1732267896568,3.42412106,3347.6,3345.3,0.01]
[1732267896569,3.42412106,3348.5,3347.2,0.2969]
[1732267896787,1.561,3349.0,3346.2,0.02]
[1732267896788,3.90992178,3348.9,3347.4,0.2969]
[1732267896993,1.561,3349.0,3346.4,0.01]
[1732267896994,3.42412106,3348.8,3347.6,0.2969]
[1732267897165,1.561,3349.0,3347.6,0.2969]
[1732267897166,3.42412106,3348.7,3347.6,0.2969]
[1732267897387,1.561,3348.6,3347.6,0.2969]
[1732267897998,1.561,3348.6,3347.7,0.2969]
[1732267898207,0.49851211,3348.5,3347.7,0.2969]
[1732267899313,3.42412106,3348.7,3347.7,0.2969]
[1732267899520,3.42412106,3348.8,3347.7,0.2969]
[1732267900991,3.42412106,3348.8,3347.8,1.9278]
[1732267901598,3.42412106,3348.7,3347.8,0.2969]
[1732267901988,3.42412106,3348.7,3347.5,0.2969]
[1732267902193,0.49156211,3348.6,3347.5,0.2969]
[1732267903633,3.42412106,3349.2,3347.8,1.8114]
[1732267903803,3.42412106,3349.1,3347.8,1.8114]
[1732267904695,0.55,3348.9,3347.3,1.8914]
[1732267905026,0.55,3348.9,3347.3,1.5945]
[1732267905027,1.588,3348.6,3347.3,1.5945]
[1732267905834,3.42412106,3348.5,3347.3,1.5945]
[1732267906031,3.42412106,3348.4,3347.3,1.5945]
[1732267906239,0.50121211,3348.3,3347.3,1.8914]
[1732267907433,0.50121211,3348.3,3346.9,1.5744]
[1732267907434,3.97412106,3348.2,3346.9,1.5744]
[1732267908156,3.42412106,3348.2,3346.9,1.5744]
[1732267908443,3.42277982,3348.2,3346.9,1.5744]
[1732267908804,3.15461,3349.2,3347.2,0.2969]
[1732267908805,3.42277982,3348.5,3347.2,0.2969]
[1732267909035,3.42277982,3348.5,3347.5,1.8389]
[1732267909200,3.42277982,3348.5,3347.7,1.542]
[1732267909641,3.42277982,3348.5,3347.8,0.2969]
[1732267909936,0.34227798,3348.5,3348.0,0.2969]
[1732267910137,3.12587982,3349.1,3348.2,0.2969]
[1732267910341,3.4539288,3349.1,3348.2,0.2969]
[1732267910498,1.5676,3348.9,3348.2,0.2969]
[1732267911135,1.5676,3348.9,3347.8,0.2969]
[1732267912009,0.55,3348.8,3347.8,0.2969]
[1732267912249,1.5676,3348.9,3347.4,0.2969]
[1732267912250,0.55,3348.4,3347.4,0.2969]
[1732267912952,1.6124,3348.5,3347.4,0.2969]
[1732267913168,1.6124,3348.5,3347.6,0.2969]
[1732267913169,0.52626278,3348.4,3347.6,0.2969]
[1732267914632,3.12587982,3348.7,3347.7,1.827]
[1732267915141,1.4865,3349.2,3347.7,1.827]
[1732267915142,3.12587982,3348.6,3347.7,1.827]
[1732267915510,0.01,3350.1,3347.7,1.827]
[1732267915511,3.12587982,3349.1,3347.7,1.827]
[1732267915715,3.12587982,3349.5,3348.3,0.2969]
[1732267915923,3.12587982,3350.4,3348.9,0.2969]
[1732267916137,3.12587982,3350.5,3349.1,1.9218]
[1732267916346,0.31258798,3350.4,3349.3,1.9218]
[1732267917035,0.31258798,3350.4,3348.5,0.79681005]
[1732267917036,3.12587982,3351.2,3349.5,0.2969]
[1732267917250,4.74467982,3352.6,3349.8,1.8587]
[1732267917463,4.74467982,3352.6,3350.1,0.2969]
[1732267917464,3.12587982,3352.5,3350.1,0.2969]
[1732267917614,3.6003478,3352.5,3350.5,0.2969]
[1732267917816,3.12587982,3352.9,3350.8,0.01]
[1732267918144,0.31258798,3352.8,3350.9,1.8587]
[1732267918390,0.31258798,3352.8,3351.1,1.8587]
[1732267918714,0.31258798,3352.8,3351.6,1.5618]
[1732267918858,3.12587982,3353.7,3352.1,0.2969]
[1732267919204,3.12587982,3353.7,3351.0,0.01]
[1732267919205,3.12587982,3353.6,3352.3,0.2969]
[1732267919493,3.4384678,3353.6,3352.5,0.2969]
[1732267919664,0.31258798,3353.5,3352.5,0.2969]
[1732267919870,0.31258798,3353.5,3352.4,1.5618]
[1732267920194,3.12587982,3354.2,3352.4,1.5618]
[1732267920489,3.12587982,3354.1,3352.6,1.5618]
[1732267920700,3.12587982,3354.0,3352.7,1.562]
[1732267920854,3.4384678,3354.0,3352.7,1.562]
[1732267922806,3.12587982,3353.9,3352.7,1.562]
[1732267922961,0.34384678,3353.8,3352.7,1.562]
[1732267923163,4.76627982,3353.7,3351.1,0.02982614]
[1732267923504,3.63689248,3353.6,3351.2,1.4867]
[1732267924159,0.55,3353.5,3351.4,1.4867]
[1732267924486,1.23120493,3353.5,3351.4,1.4867]
[1732267924670,1.23120493,3353.5,3351.6,1.4867]
[1732267924874,0.55,3353.3,3351.6,1.4867]
[1732267925100,0.55,3353.1,3351.6,1.4867]
[1732267925317,0.55,3352.9,3351.6,1.4867]
[1732267925508,1.5927,3352.6,3351.6,1.4867]
[1732267925680,3.89014982,3352.5,3349.7,1.5921]
[1732267925926,3.12587982,3352.4,3349.9,1.4854]
[1732267926123,3.6741648,3352.4,3350.1,1.4854]
[1732267926413,3.67587982,3352.3,3350.1,1.4854]
[1732267926614,0.55,3352.1,3350.1,1.4854]
[1732267926920,0.55,3351.9,3350.1,1.4854]
[1732267927220,0.55,3351.7,3350.1,1.4854]
[1732267927380,3.12587982,3351.6,3350.1,1.4854]
[1732267927713,3.12587982,3351.6,3350.2,1.5428]
[1732267927887,0.31258798,3351.5,3349.6,1.581]
[1732267928233,0.31258798,3351.5,3350.7,1.581]
[1732267928379,3.12587982,3351.6,3350.7,1.581]
[1732267928380,0.34384678,3351.4,3350.7,1.581]
[1732267929697,3.12587982,3352.6,3350.8,1.51034447]
[1732267929891,1.4798,3353.1,3350.8,1.51034447]
[1732267929892,3.12587982,3352.5,3351.5,1.4805]
[1732267930219,3.4384678,3352.4,3351.5,1.4805]
[1732267930392,3.12587982,3353.0,3351.7,3.0]
[1732267930592,0.31258798,3352.9,3351.8,1.6028]
[1732267932130,1.5538,3352.8,3351.8,1.6028]
[1732267932689,0.31258798,3352.9,3351.8,1.6028]
[1732267932892,0.34384678,3352.8,3351.8,1.6028]
[1732267934901,0.34384678,3352.8,3351.8,1.30542]
[1732267935302,0.34384678,3352.8,3350.1,0.57983601]
[1732267935608,3.47285248,3352.7,3350.1,0.57983601]
[1732267935831,3.12587982,3352.7,3350.2,0.56]
[1732267936144,3.12587982,3352.7,3350.4,0.55]
[1732267936339,3.12587982,3352.7,3351.5,3.0]
[1732267936540,3.4384678,3352.6,3350.5,0.02983672]
[1732267936711,3.12587982,3352.5,3351.5,3.0]
[1732267937033,1.6391,3353.4,3351.5,3.0]
[1732267937034,3.12587982,3352.4,3351.5,3.0]
[1732267937635,3.12587982,3352.4,3350.3,0.02983885]
[1732267937945,3.12587982,3352.3,3351.3,1.5173]
[1732267938113,3.4384678,3352.2,3351.3,1.5173]
[1732267938307,3.12587982,3352.2,3351.3,1.5173]
[1732267938544,3.12587982,3352.2,3351.4,0.55]
[1732267938545,1.88546094,3352.2,3351.4,0.55]
[1732267938751,1.88546094,3352.2,3351.5,4.6296]
[1732267939104,1.88546094,3352.2,3351.5,2.14756]
[1732267939440,1.88546094,3352.2,3351.5,1.6216]
[1732267939643,0.16391,3353.3,3351.6,1.6216]
[1732267939807,6.56,3353.2,3351.8,0.2969]
[1732267940606,1.5805,3353.1,3351.8,0.2969]
[1732267940806,6.56,3353.2,3352.0,0.2969]
[1732267941142,0.656,3353.1,3352.0,0.2969]
[1732267943337,1.6315,3353.0,3352.0,0.2969]
[1732267943853,6.56,3352.9,3352.1,0.2969]
[1732267944024,0.88475,3352.8,3352.1,0.2969]
[1732267944949,0.88475,3352.8,3351.6,0.2969]
[1732267945125,6.36,3352.7,3351.6,0.2969]
[1732267946142,6.36,3352.7,3351.7,1.8102]
[1732267946619,6.16,3352.7,3351.7,1.8102]
[1732267946811,6.16,3353.3,3351.7,1.8102]
[1732267947822,6.16,3353.3,3351.9,0.2969]
[1732267948032,0.77958,3353.2,3351.9,0.2969]
[1732267948745,1.4953,3353.1,3351.9,0.2969]
[1732267948915,1.4953,3353.1,3351.7,1.5133]
[1732267948916,1.4953,3353.1,3352.0,0.2969]
[1732267949124,0.77958,3353.2,3352.0,0.2969]
[1732267949125,1.4908,3352.9,3352.0,0.2969]
[1732267949431,0.76508,3352.8,3352.0,0.2969]
[1732267949655,0.76508,3352.8,3352.2,0.2969]
[1732267949814,6.16,3353.0,3352.2,0.2969]
[1732267950220,6.16,3352.9,3352.2,0.2969]
[1732267950838,6.16,3352.9,3351.9,0.2969]
[1732267951033,6.16,3352.9,3350.7,0.01]
[1732267951034,6.16,3352.9,3352.3,0.2969]
[1732267951235,2.98054,3355.1,3352.5,0.2969]
[1732267951236,6.16,3353.6,3352.5,0.2969]
[1732267951458,6.16,3353.5,3352.9,0.2969]
[1732267951624,0.616,3353.4,3352.9,0.2969]
[1732267952252,6.16,3353.5,3352.9,0.2969]
[1732267952451,6.16,3353.5,3353.2,0.2969]
[1732267952763,1.5127,3354.6,3353.2,0.2969]
[1732267952764,6.16,3354.5,3353.2,0.2969]
[1732267952926,6.92727,3354.4,3353.2,0.2969]
[1732267953274,6.16,3354.4,3353.2,0.2969]
[1732267954445,6.16,3354.3,3353.2,0.2969]
[1732267954672,6.16,3354.3,3352.7,1.8663]
[1732267954961,6.16,3354.3,3352.7,1.89612063]
[1732267955265,6.16,3354.3,3353.4,1.8663]
[1732267956823,6.16,3354.3,3353.4,1.5694]
[1732267957169,6.16,3354.3,3353.0,1.6366]
[1732267957377,0.77608,3354.2,3353.0,1.6366]
[1732267957865,0.77608,3354.2,3353.1,0.2972]
[1732267959164,0.77608,3354.2,3353.2,1.8391]
[1732267959462,6.16,3354.3,3353.3,1.72581]
[1732267959685,6.16,3354.3,3353.4,0.2972]
[1732267959853,1.5984,3354.2,3353.3,1.5419]
[1732267960175,6.16,3354.1,3353.3,1.5419]
[1732267960473,6.16,3354.1,3352.3,0.02982138]
[1732267960474,0.77584,3354.0,3352.3,1.6332]
[1732267960677,6.16,3353.9,3352.3,1.6332]
[1732267960848,6.16,3353.9,3352.8,0.2972]
[1732267961392,6.16,3353.8,3352.8,0.2972]
[1732267961539,0.616,3353.7,3352.7,1.2787]
[1732267961885,1.6341,3353.5,3351.7,0.2972]
[1732267962243,1.6341,3353.5,3351.2,1.84790707]
[1732267962244,1.6341,3353.5,3351.9,0.2972]
[1732267962471,6.16,3353.4,3352.1,0.2972]
[1732267962788,8.57551,3353.4,3352.1,0.2972]
[1732267963080,6.16,3353.3,3352.1,0.2972]
[1732267963328,2.41551,3353.4,3352.1,0.2972]
[1732267963329,6.16,3353.2,3352.1,0.2972]
[1732267963444,6.16,3353.2,3352.1,0.95748145]
[1732267964649,6.16,3353.2,3352.3,0.2972]
[1732267964984,5.8631,3353.2,3352.3,0.2972]
[1732267966143,5.8631,3353.2,3352.4,1.8275]
[1732267969097,5.5631,3354.1,3352.4,1.8275]
[1732267969244,5.5631,3354.0,3352.4,1.8275]
[1732267969444,1.5135,3354.2,3352.8,3.2972]
[1732267969445,6.27076,3353.9,3352.8,3.2972]
[1732267969781,6.27076,3353.9,3353.2,0.2972]
[1732267969782,5.5631,3353.9,3353.2,0.2972]
[1732267970078,1.4984,3354.6,3353.4,0.2972]
[1732267970079,5.5631,3354.5,3353.4,0.2972]
[1732267970283,6.26925,3354.5,3353.4,0.501745]
[1732267970584,5.5631,3354.4,3353.4,0.2972]
[1732267970981,5.5631,3354.4,3353.2,0.2972]
[1732267971176,0.776765,3354.3,3353.2,0.2972]
[1732267971982,1.5676,3354.2,3353.2,0.2972]
[1732267972180,1.5676,3354.2,3352.3,0.2972]
[1732267972467,6.3538465,3354.1,3352.3,0.47825]
[1732267972671,5.5631,3354.0,3352.3,0.47825]
[1732267972873,1.6336,3353.9,3352.3,0.47825]
[1732267973081,0.71967,3353.8,3352.5,0.2972]
[1732267973675,5.5631,3353.7,3352.5,0.2972]
[1732267974013,5.5631,3353.7,3352.3,0.2972]
[1732267978189,5.5631,3353.6,3352.3,0.2972]
[1732267978432,0.55631,3353.5,3352.3,0.2972]
[1732267978633,5.5631,3353.4,3352.3,0.2972]
[1732267979522,7.1746,3353.3,3352.3,0.2972]
[1732267980836,5.5631,3353.3,3352.3,0.2972]
[1732267981155,5.5631,3353.3,3352.1,0.2972]
[1732267981574,5.5631,3353.3,3352.1,3.2972]
[1732267981718,0.55631,3353.2,3352.1,0.62692]
[1732267981923,5.5631,3353.3,3352.5,0.2972]
[1732267982728,5.5631,3353.3,3352.5,3.2972]
[1732267983274,2.98027,3355.4,3352.5,3.2972]
[1732267983275,5.5631,3353.8,3352.6,1.9457]
[1732267983419,5.5631,3353.8,3352.5,0.02982865]
[1732267983420,5.5631,3353.8,3353.2,0.2972]
[1732267983621,5.5631,3353.7,3353.2,0.2972]
[1732267984655,5.5631,3353.7,3353.3,0.2972]
[1732267985657,5.5631,3353.7,3353.2,0.2972]
[1732267985658,6.11941,3353.7,3353.2,0.2972]
[1732267986287,5.5631,3353.7,3353.2,0.2972]
[1732267986591,5.5631,3353.7,3353.3,0.2972]
[1732267987256,5.5631,3353.6,3353.3,0.2972]
[1732267987783,5.5631,3353.6,3353.2,0.2972]
[1732267988194,5.5631,3353.6,3353.4,0.2972]
[1732267988387,5.5631,3353.6,3352.9,1.68806]
[1732267988388,5.5631,3353.6,3353.5,0.51955011]
[1732267990094,5.5631,3353.6,3353.5,0.2972]
[1732267990260,6.11941,3353.6,3353.5,0.2972]
[1732267990596,6.11941,3353.6,3352.6,0.2972]
[1732267990892,6.11941,3353.6,3350.4,0.04982735]
[1732267990893,1.5545,3353.5,3352.7,0.2972]
[1732267991060,0.27496655,3353.4,3352.7,0.2972]
[1732267991261,2.323431,3353.5,3352.7,0.2972]
[1732267991688,2.323431,3353.5,3352.9,0.2972]
[1732267991964,0.7886531,3353.4,3352.9,0.2972]
[1732267992387,0.7886531,3353.4,3350.7,0.01]
[1732267992593,0.7886531,3353.4,3352.2,0.2972]
[1732267992594,5.5631,3353.3,3352.2,0.2972]
[1732267992768,1.5545,3353.5,3352.4,0.2972]
[1732267992769,5.5631,3353.2,3352.4,0.2972]
[1732267992963,5.5631,3353.2,3352.6,0.2972]
[1732267993817,1.6132,3353.1,3352.6,0.2972]
[1732267993972,1.6132,3353.1,3352.1,0.2972]
[1732267994172,1.6132,3353.1,3352.0,1.6378]
[1732267994173,6.28073,3353.0,3352.3,0.2972]
[1732267994507,5.5631,3353.0,3352.3,0.2972]
[1732267995274,5.5631,3353.0,3352.1,0.2972]
[1732267995614,5.5631,3353.0,3352.3,0.2972]
[1732267996487,5.5631,3353.0,3352.1,0.2972]
[1732267996705,5.5631,3353.0,3352.3,0.2972]
[1732267997013,5.5631,3353.0,3352.8,0.2972]
[1732267997241,5.5631,3352.9,3352.8,1.9164]
[1732267998429,5.5631,3354.0,3352.8,1.9164]
[1732267998638,1.5767,3354.5,3352.8,1.9164]
[1732267998639,5.5631,3353.9,3352.8,1.9164]
[1732267998985,5.5631,3353.9,3352.9,0.02982104]
[1732267999222,5.5631,3353.9,3353.1,0.2972]
[1732267999383,4.52395889,3355.6,3352.5,3.0]
[1732267999384,5.5631,3354.4,3353.3,0.2972]
[1732267999587,5.5631,3354.3,3353.5,0.2972]
[1732267999787,5.5631,3354.2,3353.7,0.2972]
[1732267999991,5.5631,3354.1,3353.9,0.2972]
[1732268000197,0.007576,3355.6,3354.0,1.9118]
[1732268000198,5.5631,3355.5,3354.0,1.9118]
[1732268000390,5.5631,3355.4,3354.0,1.9118]
[1732268000625,0.5570676,3355.3,3354.0,1.9118]
[1732268001000,5.5631,3355.2,3354.0,1.9118]
[1732268003497,5.5631,3355.1,3354.0,1.9118]
[1732268004238,5.5631,3355.0,3354.0,1.9118]
[1732268004436,5.5631,3354.9,3354.0,2.40596128]
[1732268004589,5.5631,3355.5,3354.4,0.2972]
[1732268004795,5.5631,3355.5,3354.7,1.507]
[1732268005131,5.5631,3355.4,3354.7,1.507]
[1732268005801,5.5631,3355.4,3354.2,0.2972]
[1732268006117,0.007576,3355.6,3355.3,1.5783]
[1732268006626,0.007576,3355.6,3355.3,4.5783]
[1732268006829,0.007576,3355.6,3355.3,1.5783]
[1732268008062,5.20418912,3357.3,3355.5,1.9334]
[1732268008243,0.1502892,3357.5,3355.4,0.57980113]
[1732268008244,5.20418912,3357.4,3355.9,0.2972]
[1732268008396,5.20418912,3357.4,3356.1,1.6362]
[1732268009044,0.1502892,3357.5,3356.2,0.8572]
[1732268009199,0.04454581,3357.5,3357.1,1.5074]
[1732268009529,0.01,3360.2,3357.1,1.5074]
[1732268009530,5.20418912,3360.0,3358.3,1.5074]
[1732268009732,5.20418912,3359.9,3358.3,1.5074]
[1732268010299,1.6382,3359.8,3358.3,1.5074]
[1732268012102,5.20418912,3359.7,3358.4,0.02977424]
[1732268012536,5.20418912,3359.7,3358.5,1.6456]
[1732268012733,5.20418912,3360.6,3358.8,1.6456]
[1732268012956,5.20418912,3360.6,3358.9,1.6456]
[1732268013160,0.1502892,3360.9,3358.9,1.6456]
[1732268013161,5.20418912,3360.5,3358.9,1.6456]
[1732268013332,5.20418912,3360.5,3358.9,1.82989035]
[1732268013691,5.20418912,3360.5,3359.1,3.0]
[1732268013989,6.78938912,3360.4,3359.1,3.0]
[1732268014148,6.78938912,3360.4,3358.9,1.6456]
[1732268014334,0.54336512,3360.3,3358.9,1.6456]
[1732268014539,0.73327542,3360.2,3358.9,1.6456]
[1732268015478,0.73327542,3360.2,3359.0,0.02976748]
[1732268016006,0.73327542,3360.2,3358.9,1.6456]
[1732268016281,0.73327542,3360.2,3359.1,3.0]
[1732268016580,0.59374645,3360.1,3359.2,1.6425]
[1732268017140,5.20418912,3360.0,3359.2,1.6425]
[1732268017566,3.96653531,3360.0,3359.2,1.6425]
[1732268020104,2.73653531,3360.7,3359.3,0.2972]
[1732268020257,0.55,3360.4,3359.3,0.2972]
[1732268020459,0.55,3360.2,3359.3,0.2972]
[1732268020987,0.55,3360.2,3358.9,0.2972]
[1732268021160,0.55,3360.0,3358.9,0.2972]
[1732268021490,1.5976,3360.1,3358.9,0.2972]
[1732268021795,0.55,3359.9,3358.9,0.2972]
[1732268022254,2.97251631,3360.0,3358.9,0.2972]